bitfinex-derivatives/quotes_ETHF0:USTF0_20251013
["timestamp","ask_amount","ask_price","bid_price","bid_amount"]
[1760382606745,0.3167747,4240.5,4240.4,1.181]
[1760382607539,0.7357,4240.1,4240.0,0.4277]
[1760382607845,0.7357,4240.1,4238.5,0.1117]
[1760382607846,0.7357,4239.3,4239.2,0.2065]
[1760382608053,0.7357,4239.3,4239.2,0.63072]
[1760382608445,0.7357,4239.3,4239.2,1.18112]
[1760382608747,0.3144,4239.5,4239.4,1.1811]
[1760382608952,0.6603,4240.0,4239.9,0.4277]
[1760382609448,0.4213,4239.8,4239.7,0.63067]
[1760382609751,0.7357,4239.8,4239.7,0.63067]
[1760382609942,0.7673,4240.2,4240.1,0.4277]
[1760382610141,0.9757,4240.2,4240.1,0.4277]
[1760382610341,4.10732787,4240.2,4240.1,0.4277]
[1760382610542,0.9757,4240.2,4240.1,0.4277]
[1760382610741,0.9757,4240.2,4240.1,0.7569]
[1760382611245,3.2078,4240.4,4240.3,0.7569]
[1760382611443,3.7351,4240.4,4240.3,0.7569]
[1760382612247,3.9435,4240.4,4240.3,0.4277]
[1760382613350,0.0023747,4240.5,4240.4,1.181]
[1760382613651,0.0023747,4240.5,4240.4,1.421]
[1760382614239,4.7e-06,4240.5,4240.4,1.421]
[1760382614446,3.5222,4242.7,4242.6,0.4277]
[1760382614647,0.54588688,4242.7,4242.6,0.4249]
[1760382614849,0.3144,4242.7,4242.0,3.2078]
[1760382615046,0.3144,4241.9,4241.6,0.24]
[1760382615247,0.3144,4241.7,4241.3,0.24]
[1760382615447,0.00187301,4241.7,4241.5,0.42399]
[1760382615654,0.00187301,4241.7,4241.3,0.24185209]
[1760382615857,0.3144,4241.6,4241.4,0.4249]
[1760382616049,0.00187301,4241.7,4241.5,3.81669]
[1760382616346,0.00187301,4241.7,4241.3,0.00185209]
[1760382616347,0.3144,4241.6,4241.3,0.61075209]
[1760382616553,0.133,4241.5,4241.3,0.42585209]
[1760382616752,0.4474,4241.5,4241.3,0.61075209]
[1760382617250,0.00187301,4241.7,4241.3,0.00185209]
[1760382617451,0.31627301,4241.7,4241.6,0.42398]
[1760382617848,0.3144,4241.6,4241.5,3.2078]
[1760382618049,0.3144,4241.4,4241.3,0.00185209]
[1760382619345,0.00187301,4241.7,4241.3,0.00185209]
[1760382619557,0.3144,4241.6,4241.5,0.42399]
[1760382619751,0.42399,4241.5,4241.3,0.00185209]
[1760382619953,0.3144,4241.4,4241.3,0.00185209]
[1760382620255,6.53081775,4241.4,4241.3,0.00185209]
[1760382621152,0.133,4240.5,4240.4,3.2078]
[1760382621348,0.4474,4240.5,4240.4,3.2078]
[1760382621752,0.3144,4239.9,4239.4,3.2078]
[1760382622054,0.133,4239.5,4239.0,0.24]
[1760382622251,0.3103,4239.4,4239.1,0.42423]
[1760382622557,0.3103,4239.4,4239.0,0.00233261]
[1760382622753,0.86745,4240.0,4239.1,0.1827]
[1760382622949,0.42416,4239.9,4239.5,0.42419]
[1760382623149,0.3103,4239.8,4239.6,0.42418]
[1760382623355,0.3103,4239.8,4239.1,0.1827]
[1760382623356,0.4433,4240.0,4239.9,0.42415]
[1760382623757,0.3103,4240.0,4239.9,0.42415]
[1760382623955,0.3103,4240.0,4239.9,0.60685]
[1760382624351,0.73441,4240.4,4240.2,0.42412]
[1760382624554,0.3103,4240.3,4240.2,0.42412]
[1760382625058,0.3103,4240.2,4240.0,0.42414]
[1760382625366,0.3103,4240.1,4240.0,0.42414]
[1760382625758,0.1257,4240.0,4239.8,0.42416]
[1760382626053,0.3103,4239.9,4239.8,0.42416]
[1760382626758,3.2078,4240.6,4239.8,1.06042]
[1760382626960,0.24,4240.8,4240.4,0.4241]
[1760382627156,0.3103,4240.7,4240.6,0.42408]
[1760382627659,0.4433,4241.0,4240.9,0.42405]
[1760382627861,3.2078,4241.1,4240.9,0.60675]
[1760382628060,0.3103,4241.1,4241.0,0.1827]
[1760382628362,0.1257,4241.5,4241.4,0.424]
[1760382628859,0.436,4241.5,4241.1,0.42403]
[1760382629156,0.3103,4241.4,4241.3,0.42401]
[1760382629457,0.00187301,4241.7,4241.3,0.42401]
[1760382629458,0.00187301,4241.7,4241.6,0.1827]
[1760382629953,0.31217301,4241.7,4241.5,0.42399]
[1760382630154,0.00187301,4241.7,4241.5,0.42399]
[1760382630354,0.00187301,4241.7,4241.6,3.3905]
[1760382631054,0.00187301,4241.7,4241.6,3.6305]
[1760382631257,0.00187301,4241.7,4241.6,3.3905]
[1760382631561,0.00187301,4241.7,4241.6,3.6305]
[1760382631955,0.73615301,4241.7,4241.1,0.24]
[1760382632156,0.1257,4241.5,4241.3,0.42401]
[1760382632454,0.31217301,4241.7,4241.3,0.1827]
[1760382632654,0.31217301,4241.7,4241.6,0.42399]
[1760382632856,0.00187301,4241.7,4241.6,0.60669]
[1760382633060,0.31217301,4241.7,4241.6,0.60669]
[1760382633559,0.31217301,4241.7,4241.6,0.42399]
[1760382634564,0.00187301,4241.7,4241.6,0.60669]
[1760382635355,0.31217301,4241.7,4241.6,0.60669]
[1760382635553,0.3103,4241.4,4241.0,3.2078]
[1760382635862,0.3103,4241.2,4241.1,0.42403]
[1760382636064,0.42407,4240.8,4240.7,0.42407]
[1760382636261,0.73437,4240.8,4240.7,0.66407]
[1760382637565,0.3103,4240.8,4240.7,0.66407]
[1760382637760,0.3103,4240.8,4240.7,0.42407]
[1760382638069,0.3103,4240.8,4240.7,0.66407]
[1760382638365,0.436,4241.5,4241.0,0.42404]
[1760382638664,0.3103,4241.2,4241.1,0.66403]
[1760382639263,0.3103,4241.2,4241.1,0.42403]
[1760382639467,0.3103,4241.2,4241.1,0.66403]
[1760382640963,0.3103,4241.8,4241.6,0.42399]
[1760382641185,0.3103,4242.2,4241.6,4.05449]
[1760382641564,0.022,4242.8,4242.6,0.42389]
[1760382641869,0.3323,4242.8,4242.7,0.24]
[1760382642470,0.3103,4242.7,4242.6,0.42389]
[1760382642659,0.3103,4242.7,4242.6,0.6664242]
[1760382642864,0.3103,4242.7,4242.6,0.4264242]
[1760382643064,0.3103,4242.7,4242.6,0.6664242]
[1760382643565,0.3103,4242.7,4242.6,0.4264242]
[1760382643770,0.3103,4242.7,4242.6,0.6664242]
[1760382644367,0.3103,4242.7,4242.6,0.4264242]
[1760382644570,0.3103,4242.7,4242.6,0.0025342]
[1760382645072,3.43103948,4242.7,4242.6,0.0025342]
[1760382645273,7.18510237,4242.7,4242.6,0.0025342]
[1760382646367,6.63883948,4242.7,4242.6,0.0025342]
[1760382647168,0.1257,4241.5,4240.9,0.42405]
[1760382647367,0.3103,4240.9,4240.8,0.42407]
[1760382647774,0.1257,4241.0,4240.8,0.66407]
[1760382647972,0.3218,4240.9,4240.8,0.42407]
[1760382648171,0.3218,4240.9,4240.8,0.66668753]
[1760382648875,0.42402,4241.3,4241.2,0.42403]
[1760382649372,0.1257,4241.5,4241.3,0.424]
[1760382649577,0.3218,4241.4,4241.3,0.664]
[1760382649973,0.3218,4241.8,4241.7,0.42397]
[1760382651276,0.3218,4242.2,4241.7,0.1818]
[1760382651471,3.63172,4242.3,4241.9,0.1818]
[1760382651671,0.3218,4242.2,4241.9,0.1818]
[1760382651868,3.63172,4242.3,4241.9,0.1818]
[1760382652178,0.309,4242.2,4241.9,0.1818]
[1760382652377,3.27005823,4242.3,4241.9,0.1818]
[1760382652578,0.309,4242.2,4242.1,0.42393]
[1760382653876,2.84613823,4242.3,4242.1,0.60583]
[1760382654072,2.84613823,4242.3,4242.2,0.1819]
[1760382654273,3.15513823,4242.3,4242.2,0.1819]
[1760382654676,3.15513823,4242.3,4242.1,0.42393]
[1760382654972,0.1257,4242.5,4242.2,3.2078]
[1760382655173,0.309,4242.4,4242.3,0.66391]
[1760382655570,0.309,4242.4,4242.3,0.42391]
[1760382655771,0.309,4242.4,4242.3,0.66391]
[1760382655966,0.309,4242.4,4242.3,0.42391]
[1760382656174,0.4332,4242.0,4241.7,3.2078]
[1760382656374,0.4332,4242.0,4241.9,0.42395]
[1760382656978,0.4332,4242.0,4241.9,0.66395]
[1760382657173,0.73296,4241.9,4241.8,0.42396]
[1760382657379,0.309,4241.9,4241.8,0.66396]
[1760382658286,0.309,4241.9,4241.8,0.84586]
[1760382658584,0.73292,4242.3,4242.2,0.42392]
[1760382658783,1.28033862,4242.3,4242.2,0.42392]
[1760382658975,0.73294,4242.1,4242.0,0.42394]
[1760382659474,0.309,4242.1,4242.0,0.42394]
[1760382660482,0.309,4242.1,4242.0,0.60584]
[1760382660683,0.309,4242.1,4242.0,0.42394]
[1760382660883,0.73294,4242.1,4242.0,0.66394]
[1760382661087,0.309,4242.1,4242.0,0.42394]
[1760382661289,0.309,4242.1,4242.0,0.66394]
[1760382661788,0.1257,4242.5,4242.4,0.4239]
[1760382661789,0.4347,4242.5,4242.4,0.4239]
[1760382662190,0.42392,4242.3,4242.2,0.42392]
[1760382662394,0.309,4242.2,4242.1,0.42393]
[1760382662587,0.73293,4242.2,4242.1,0.42393]
[1760382663291,0.309,4242.2,4242.1,0.42393]
[1760382663589,0.309,4242.2,4242.1,0.66393]
[1760382663800,0.73292,4242.2,4242.1,0.66393]
[1760382663990,0.4332,4242.0,4241.9,0.42395]
[1760382664190,0.4332,4242.0,4241.9,0.66395]
[1760382664700,0.4332,4242.0,4241.9,0.42395]
[1760382664995,0.4332,4242.0,4241.9,0.66395]
[1760382665194,0.4332,4242.0,4241.9,0.87495]
[1760382665195,0.6409,4242.0,4241.9,0.87495]
[1760382665995,0.309,4242.0,4241.9,1.28325]
[1760382666302,0.42392,4242.3,4242.2,0.42393]
[1760382666504,0.84342,4242.3,4242.2,0.42393]
[1760382666794,1.15242,4242.3,4242.2,0.42393]
[1760382667895,0.7285,4242.3,4242.2,0.63493]
[1760382669804,1.69935194,4242.3,4242.2,0.42393]
[1760382672003,1.69935194,4242.3,4242.2,0.63493]
[1760382672302,1.27544194,4242.3,4242.2,0.63493]
[1760382673397,0.309,4242.7,4242.4,0.6193]
[1760382673604,0.54088373,4242.8,4242.7,0.86127]
[1760382673804,1.51192371,4242.8,4242.7,0.86127]
[1760382674006,1.51192371,4242.8,4242.7,0.63487]
[1760382674007,1.72372371,4242.8,4242.7,0.63487]
[1760382674202,1.72372371,4242.8,4242.7,0.42387]
[1760382674399,1.29986371,4242.8,4242.5,0.24]
[1760382674605,1.29986371,4242.8,4241.8,4.4496]
[1760382674606,0.8527,4242.0,4241.9,0.42395]
[1760382674906,0.8527,4242.0,4241.9,0.66395]
[1760382675202,0.8527,4242.0,4241.9,0.87495]
[1760382675403,0.4332,4242.0,4241.9,1.28325]
[1760382675606,0.6409,4242.0,4241.9,1.10135]
[1760382675799,0.8527,4242.0,4241.9,0.87495]
[1760382676301,0.8527,4242.0,4241.9,1.10135]
[1760382678004,0.7285,4241.4,4241.3,3.63181]
[1760382678202,0.7285,4240.9,4240.8,3.84548753]
[1760382678609,0.7285,4240.9,4240.8,0.00261753]
[1760382679194,0.7285,4240.9,4240.8,0.44001753]
[1760382679606,0.7285,4240.9,4240.8,0.21361753]
[1760382681208,0.7285,4240.9,4240.8,0.00261753]
[1760382682001,1.27580742,4240.9,4240.8,0.00261753]
[1760382682701,0.7285,4240.9,4240.8,0.20741753]
[1760382682905,0.5167,4240.9,4240.8,0.42481753]
[1760382683204,0.309,4240.9,4240.8,0.60681753]
[1760382683409,0.309,4240.9,4240.8,0.66481753]
[1760382683603,0.5289,4240.9,4240.8,0.66481753]
[1760382683805,0.7538,4240.9,4240.8,0.00261753]
[1760382686809,0.7538,4240.9,4240.8,0.42667753]
[1760382687813,0.7538,4240.9,4240.8,0.63147753]
[1760382688405,0.7538,4240.9,4240.8,0.84887753]
[1760382688812,0.309,4240.9,4240.8,4.23867753]
[1760382689306,0.5289,4240.9,4240.8,4.05667753]
[1760382689902,0.1242,4241.5,4240.9,0.42405]
[1760382690109,0.3095,4241.4,4241.3,0.84621]
[1760382690308,0.24,4241.9,4241.6,0.4222]
[1760382690506,3.4277,4241.7,4241.6,0.4222]
[1760382690914,3.7372,4241.7,4241.6,0.4222]
[1760382691421,3.7372,4241.7,4241.6,0.84618]
[1760382691603,0.5294,4241.7,4241.6,0.84618]
[1760382692510,0.3095,4241.7,4241.6,0.84618]
[1760382692713,0.3095,4241.7,4241.6,1.02818]
[1760382692911,0.5294,4241.7,4241.6,0.84618]
[1760382693913,0.5294,4241.7,4241.6,1.08618]
[1760382694712,0.7543,4241.7,4241.6,0.84618]
[1760382695014,0.7543,4241.7,4241.6,0.42398]
[1760382695216,0.7543,4241.7,4241.6,0.62878]
[1760382696115,0.7543,4241.7,4241.6,0.84618]
[1760382699020,0.3432,4241.5,4241.3,0.42401]
[1760382699221,0.7543,4240.9,4240.7,0.24]
[1760382699423,0.7543,4240.9,4240.8,0.42667753]
[1760382699614,0.7543,4240.9,4240.8,0.63147753]
[1760382701317,0.3095,4240.9,4240.8,1.03087753]
[1760382701625,0.5294,4240.9,4240.8,0.84887753]
[1760382702925,0.3095,4240.9,4240.8,1.03087753]
[1760382703423,0.5681,4241.5,4241.4,0.424]
[1760382703724,0.8776,4241.5,4241.4,0.6288]
[1760382704119,0.8776,4241.5,4241.4,0.8462]
[1760382704526,0.6527,4241.5,4241.4,0.8462]
[1760382704721,0.8776,4241.5,4241.4,0.8462]
[1760382705123,0.5495,4241.8,4241.7,0.62877]
[1760382705321,1.09662432,4241.8,4241.7,0.84617]
[1760382705626,1.07652432,4241.8,4241.7,0.84617]
[1760382705823,0.85662432,4241.8,4241.7,1.02817]
[1760382706220,0.7543,4241.3,4241.2,3.63182]
[1760382706420,1.72569088,4241.3,4241.2,0.42402]
[1760382706621,1.30168088,4241.3,4241.2,0.42402]
[1760382707022,0.239,4241.8,4241.7,0.4222]
[1760382707221,0.1242,4242.0,4241.7,0.6042]
[1760382707415,0.84596819,4242.4,4242.0,1.05986]
[1760382707416,0.239,4242.4,4242.0,1.05986]
[1760382707622,0.7684,4242.4,4242.3,0.84611]
[1760382707824,1.315758,4242.4,4242.3,0.84611]
[1760382708021,1.540658,4242.4,4242.3,0.84611]
[1760382708521,1.301658,4242.4,4242.3,0.84611]
[1760382709622,1.301658,4242.4,4242.3,0.62871]
[1760382709925,1.301658,4242.4,4242.3,0.42391]
[1760382713119,1.301658,4242.4,4242.3,0.63191]
[1760382717630,1.301658,4242.4,4242.3,0.42391]
[1760382718427,0.1355,4242.0,4241.8,3.2078]
[1760382718627,0.7519,4241.6,4241.5,1.07499]
[1760382718829,0.7519,4241.6,4241.5,0.83599]
[1760382720020,0.7519,4241.6,4241.5,0.42399]
[1760382721029,0.3224,4241.6,4241.5,0.83599]
[1760382721330,0.6708,4242.0,4241.9,0.83595]
[1760382721632,0.55948373,4242.8,4242.7,0.83587]
[1760382721937,0.02418373,4242.8,4242.7,4.22597]
[1760382722731,0.02418373,4242.8,4242.7,4.46497]
[1760382723129,0.34658373,4242.8,4242.7,4.46497]
[1760382723834,0.34658373,4242.8,4242.7,4.22597]
[1760382724135,0.34658373,4242.8,4242.7,4.46497]
[1760382724338,0.02418373,4242.8,4242.7,4.46497]
[1760382725535,0.34658373,4242.8,4242.7,4.46497]
[1760382725936,0.34658373,4242.8,4242.7,4.22597]
[1760382726132,0.34658373,4242.8,4242.7,4.46497]
[1760382726439,0.77608373,4242.8,4242.7,0.83587]
[1760382726829,0.77608373,4242.8,4242.7,1.07487]
[1760382727035,0.02418373,4242.8,4242.7,4.46497]
[1760382727538,3.73e-06,4242.8,4242.7,4.46497]
[1760382727841,0.3224,4243.8,4243.7,1.01807]
[1760382728433,25.4579,4244.0,4243.9,1.01805]
[1760382728637,24.42194821,4244.0,4243.9,4.22585]
[1760382728841,24.42448657,4244.0,4243.9,4.22863068]
[1760382729036,25.09528657,4244.0,4243.9,4.04633068]
[1760382729340,25.31188657,4244.0,4243.9,4.04633068]
[1760382729539,24.42448657,4244.0,4243.9,4.22863068]
[1760382729941,25.09528657,4244.0,4243.9,4.28533068]
[1760382730143,25.31188657,4244.0,4243.9,0.66553068]
[1760382730440,25.31188657,4244.0,4243.9,0.42653068]
[1760382730639,25.31188657,4244.0,4243.9,0.63453068]
[1760382731137,25.31188657,4244.0,4243.9,0.83853068]
[1760382731440,24.88238657,4244.0,4243.9,0.83853068]
[1760382732338,24.42448657,4244.0,4243.9,1.02083068]
[1760382732844,24.42448657,4244.0,4243.9,1.25983068]
[1760382733236,23.88613657,4244.0,4243.9,4.46763068]
[1760382733637,23.36409657,4244.0,4243.9,4.46763068]
[1760382733841,22.13921657,4244.0,4243.9,4.46763068]
[1760382734042,20.86317657,4244.0,4243.9,4.46763068]
[1760382734543,20.35329657,4244.0,4243.9,4.46763068]
[1760382734744,19.84050657,4244.0,4243.9,4.46763068]
[1760382734947,18.45785657,4244.0,4243.9,4.46763068]
[1760382735138,12.62288389,4244.0,4243.9,4.46763068]
[1760382735337,12.05281389,4244.0,4243.9,4.46763068]
[1760382735746,10.75372389,4244.0,4243.9,4.46763068]
[1760382735946,10.23752389,4244.0,4243.9,4.46763068]
[1760382736143,9.69493389,4244.0,4243.9,4.46763068]
[1760382736444,10.58233389,4244.0,4243.9,4.04633068]
[1760382736646,10.58233389,4244.0,4243.9,4.28533068]
[1760382736947,10.01733389,4244.0,4243.9,4.46763068]
[1760382737142,9.69493389,4244.0,4243.9,4.46763068]
[1760382737744,10.36573389,4244.0,4243.9,4.28533068]
[1760382738545,10.58233389,4244.0,4243.9,3.63433068]
[1760382738745,10.58233389,4244.0,4243.9,0.42653068]
[1760382739249,0.565,4243.5,4243.4,0.4238]
[1760382739445,0.1355,4243.0,4242.8,0.42386]
[1760382739651,0.3745,4243.0,4242.8,0.2602838]
[1760382739942,0.1355,4242.5,4242.4,3.2078]
[1760382740149,0.3224,4242.4,4242.3,0.42391]
[1760382740544,0.3224,4242.4,4242.3,0.4261329]
[1760382743757,0.3224,4242.4,4242.3,0.0022229]
[1760382744147,0.51,4242.0,4241.9,3.63175]
[1760382744654,0.5141,4242.5,4242.4,0.4239]
[1760382745048,0.5141,4242.5,4242.4,0.42593548]
[1760382746252,0.3786,4242.5,4242.4,0.42593548]
[1760382746551,0.51,4242.5,4242.4,0.42593548]
[1760382747251,0.51,4242.5,4241.9,3.2078]
[1760382747252,0.51,4242.0,4241.9,3.63175]
[1760382747455,0.51,4242.0,4241.8,0.42396]
[1760382747656,3.51116815,4242.0,4241.8,0.42396]
[1760382748154,3.51116815,4242.0,4241.8,0.42631046]
[1760382748350,0.51,4241.0,4240.9,3.63185]
[1760382748660,3.57749448,4241.0,4240.9,3.2078]
[1760382749051,3.57749448,4241.0,4240.4,3.2078]
[1760382749359,0.51,4240.5,4240.4,3.63453471]
[1760382749753,3.61909079,4240.5,4240.4,0.42673471]
[1760382752460,3.61909079,4240.5,4240.4,0.00263471]
[1760382753063,0.13415813,4241.0,4240.5,1.06024]
[1760382753261,0.13415813,4241.0,4240.4,3.21043471]
[1760382753558,0.51275813,4241.0,4240.9,0.42405]
[1760382753759,0.75175813,4241.0,4240.9,0.42405]
[1760382754065,0.00275813,4241.0,4240.9,3.89955]
[1760382754261,0.00275813,4241.0,4240.9,3.63185]
[1760382754457,0.51275813,4241.0,4240.9,3.63185]
[1760382756563,3.62465889,4241.0,4240.9,0.42405]
[1760382757859,3.86365889,4241.0,4240.9,0.42405]
[1760382758956,0.51275813,4241.0,4240.9,3.63185]
[1760382759366,8.13e-06,4241.0,4240.9,3.89955]
[1760382760567,8.13e-06,4241.0,4240.9,4.13855]
[1760382763974,0.51,4242.0,4241.9,0.42395]
[1760382764170,3.2078,4242.3,4242.2,0.42392]
[1760382764370,3.5864,4242.3,4242.2,0.42392]
[1760382764869,3.58918605,4242.3,4242.2,0.42392]
[1760382766659,6.59475983,4242.3,4242.2,0.42392]
[1760382768567,3.38695983,4242.3,4242.2,0.42392]
[1760382768773,0.38138605,4242.3,4242.2,0.42392]
[1760382768975,0.38138605,4242.3,4242.2,3.63172]
[1760382772174,6.67777412,4242.3,4242.2,0.42392]
[1760382772375,0.3402,4242.2,4242.1,0.42393]
[1760382772577,0.5792,4242.2,4242.1,0.42393]
[1760382773171,0.5792,4242.2,4242.1,3.63173]
[1760382773977,0.3402,4242.2,4242.1,3.88683]
[1760382774286,6.05e-06,4242.3,4242.2,0.67902]
[1760382774580,0.34020605,4242.3,4242.2,0.42392]
[1760382774774,0.34020605,4242.3,4242.2,0.66292]
[1760382775276,0.34020605,4242.3,4242.2,0.91802]
[1760382775482,6.05e-06,4242.3,4242.2,0.91802]
[1760382776382,6.05e-06,4242.3,4242.2,0.67902]
[1760382776682,6.05e-06,4242.3,4242.2,0.42392]
[1760382777781,6.05e-06,4242.3,4242.2,0.67902]
[1760382778484,6.05e-06,4242.3,4242.2,0.66292]
[1760382780680,3.4349,4243.4,4243.3,0.67341]
[1760382780885,3.2078,4244.1,4243.3,0.9743]
[1760382781075,0.5673,4243.9,4243.8,0.90396]
[1760382781777,0.56931321,4243.9,4243.8,1.14467071]
[1760382782781,0.79661321,4243.9,4243.8,0.66447071]
[1760382783283,0.79661321,4243.9,4243.8,0.42547071]
[1760382783476,0.79661321,4243.9,4243.8,0.65607071]
[1760382784186,4.15596958,4243.9,4243.8,0.00171071]
[1760382784388,5.12912316,4243.9,4243.8,0.00171071]
[1760382785092,4.70537316,4243.9,4243.8,0.00171071]
[1760382785687,4.46637316,4243.9,4243.8,0.00171071]
[1760382785999,4.70537316,4243.9,4243.8,0.00171071]
[1760382786291,4.46637316,4243.9,4243.8,0.00171071]
[1760382786485,4.70537316,4243.9,4243.8,0.00171071]
[1760382787191,4.70537316,4243.9,4243.4,0.3072]
[1760382787192,1.35779,4243.5,4243.4,0.3072]
[1760382787392,5.35399358,4243.5,4242.5,1.05972]
[1760382787692,0.7946,4242.6,4242.5,0.42389]
[1760382787991,0.5673,4242.6,4242.5,0.90409]
[1760382788193,0.3402,4242.6,4242.5,0.90705769]
[1760382788386,0.3402,4242.6,4242.5,1.16215769]
[1760382788886,0.3402,4242.6,4242.5,0.90705769]
[1760382790487,0.7067,4243.0,4242.9,0.90405]
[1760382790688,0.934,4243.0,4242.9,0.90405]
[1760382791083,0.934,4243.0,4242.9,0.42385]
[1760382792697,0.7946,4242.6,4242.5,0.42685769]
[1760382794796,3.80662129,4242.6,4242.5,0.42685769]
[1760382795097,4.23050129,4242.6,4242.5,0.00296769]
[1760382795599,5.01182284,4242.6,4242.5,0.00296769]
[1760382796294,0.5938,4241.0,4240.4,3.2078]
[1760382796492,0.5938,4241.0,4240.8,0.42406]
[1760382796493,0.934,4241.0,4240.8,0.42406]
[1760382796799,0.3402,4241.3,4241.2,0.65462]
[1760382796999,0.8063,4241.3,4241.2,0.65462]
[1760382797190,4.06956324,4241.3,4241.2,0.42579991]
[1760382797797,4.06956324,4241.3,4241.2,0.00177991]
[1760382798296,3.83056324,4241.3,4241.2,0.48197991]
[1760382798496,0.7946,4241.7,4241.6,1.27048]
[1760382798794,0.3402,4242.3,4242.2,0.79022]
[1760382799100,3.38676568,4242.3,4242.2,0.42392]
[1760382799399,0.3402,4242.3,4242.2,0.42392]
[1760382802507,0.3402,4242.3,4241.0,3.2078]
[1760382802508,0.5069,4242.0,4241.0,3.2078]
[1760382802701,0.3566,4241.7,4241.6,0.42398]
[1760382802998,3.44418021,4241.7,4241.6,0.42398]
[1760382803598,3.5644,4241.8,4241.7,0.3524]
[1760382803893,0.3566,4242.3,4242.2,0.42392]
[1760382804203,0.3566,4242.3,4242.2,0.77632]
[1760382805606,3.2078,4242.8,4242.2,0.77632]
[1760382805607,3.2078,4243.8,4243.7,0.3524]
[1760382805794,9.69239553,4244.0,4243.8,0.77616]
[1760382805999,9.69239553,4244.0,4243.6,3.5602]
[1760382806200,0.3566,4243.7,4243.6,3.2078]
[1760382806601,9.69239553,4244.0,4243.9,0.77615]
[1760382807002,9.69540071,4244.0,4243.9,0.77615]
[1760382808704,9.69540071,4244.0,4243.9,1.01515]
[1760382808902,9.20505071,4244.0,4243.9,1.01515]
[1760382809201,1.73835411,4246.7,4244.5,2.11845]
[1760382809398,0.47077939,4246.7,4246.1,3.2078]
[1760382809596,0.3893,4246.5,4246.3,0.4235]
[1760382809796,0.3566,4246.4,4246.1,3.2078]
[1760382810100,0.3566,4246.4,4246.2,0.42351]
[1760382810303,0.3566,4246.2,4246.1,3.21056911]
[1760382810604,3.4609733,4246.2,4246.1,0.00276911]
[1760382813808,0.5956,4246.2,4246.1,0.00276911]
[1760382814308,0.3566,4246.2,4246.1,0.00276911]
[1760382814506,0.5956,4246.2,4246.1,0.00276911]
[1760382814902,3.64141008,4246.2,4246.1,0.00276911]
[1760382815098,3.40241008,4246.2,4246.1,0.00276911]
[1760382815709,3.64141008,4246.2,4246.1,0.00276911]
[1760382815900,3.40241008,4246.2,4246.1,0.00276911]
[1760382816106,3.64141008,4246.2,4246.1,0.00276911]
[1760382816499,3.40241008,4246.2,4246.1,0.00276911]
[1760382816703,3.64141008,4246.2,4246.1,0.00276911]
[1760382817515,0.3566,4246.2,4246.1,0.00276911]
[1760382818221,0.5956,4246.2,4246.1,0.00276911]
[1760382819712,0.3566,4246.2,4246.1,0.00276911]
[1760382819916,0.5956,4246.2,4246.1,0.00276911]
[1760382820414,0.3566,4246.2,4246.1,0.00276911]
[1760382820620,0.5956,4246.2,4246.1,0.00276911]
[1760382821121,0.3566,4246.2,4246.1,0.00276911]
[1760382821317,1e-05,4246.2,4246.1,0.00276911]
[1760382821521,4.93e-06,4246.4,4246.2,0.42352]
[1760382821720,4.32e-06,4246.7,4246.6,0.42348]
[1760382822120,3.3581,4249.0,4247.5,10.58485]
[1760382822320,0.1503,4249.0,4248.0,1.05836]
[1760382822621,0.15289711,4249.0,4248.9,0.42325]
[1760382823021,0.1503,4250.0,4249.9,0.42315]
[1760382823521,0.5069,4250.0,4249.9,0.42315]
[1760382824027,0.5069,4250.5,4250.4,0.4231]
[1760382824228,0.00264184,4250.5,4250.4,0.4231]
[1760382824525,0.5069,4250.0,4249.9,0.42609785]
[1760382824924,0.1503,4250.0,4249.9,0.42609785]
[1760382825121,0.5069,4250.0,4249.9,0.00294785]
[1760382825529,0.15294184,4250.5,4250.3,0.42311]
[1760382825828,0.5069,4250.0,4249.9,0.00294785]
[1760382826430,0.7479,4250.0,4249.9,0.00294785]
[1760382827022,0.5069,4250.0,4249.9,0.00294785]
[1760382827222,0.7479,4250.0,4249.9,0.00294785]
[1760382828526,0.1616,4249.5,4247.5,1.05849]
[1760382828728,0.4068,4248.9,4246.7,10.58685]
[1760382829029,0.5684,4248.5,4248.4,0.4233]
[1760382829228,0.5684,4249.0,4247.7,1.05842]
[1760382829424,0.241,4248.9,4248.6,0.42328]
[1760382829624,0.4068,4248.8,4248.6,0.42543918]
[1760382830130,0.241,4248.9,4248.6,0.00215918]
[1760382830324,0.4068,4248.8,4248.6,0.00215918]
[1760382830627,0.1616,4249.0,4248.6,0.00215918]
[1760382830925,0.241,4249.2,4248.6,0.00215918]
[1760382831128,0.1616,4249.0,4248.7,0.42327]
[1760382831324,0.1616,4249.0,4248.6,0.00215918]
[1760382831325,0.4068,4248.9,4248.8,0.42326]
[1760382831532,0.1616,4249.0,4248.8,0.42326]
[1760382831833,0.241,4249.4,4249.3,0.42321]
[1760382832022,0.5571,4250.0,4249.8,0.42316]
[1760382832023,0.4068,4249.9,4249.8,0.42316]
[1760382832223,0.6478,4249.9,4249.8,0.42316]
[1760382832623,0.4051,4249.9,4249.6,0.42318]
[1760382832927,0.4051,4249.9,4248.7,1.05818]
[1760382832928,0.4051,4249.7,4248.7,1.05819]
[1760382833232,0.1572,4249.0,4248.8,0.42326]
[1760382833424,0.1572,4249.0,4248.7,1.05819]
[1760382833425,0.241,4249.2,4249.0,0.42324]
[1760382833624,0.5554,4250.0,4249.9,0.42315]
[1760382833820,0.7964,4250.0,4249.9,0.42315]
[1760382834532,0.4051,4249.9,4249.7,0.42317]
[1760382834733,0.6461,4249.8,4249.7,0.42317]
[1760382834922,0.4051,4249.8,4249.7,0.42317]
[1760382835127,0.6451,4249.8,4249.7,0.42317]
[1760382838132,0.4051,4249.8,4249.7,0.42317]
[1760382838436,0.6451,4249.8,4249.7,0.42317]
[1760382838934,0.4051,4249.8,4249.7,0.42317]
[1760382839130,0.6451,4249.8,4249.7,0.42317]
[1760382839335,0.4051,4248.9,4248.7,0.42327]